[Event "Deloitte NK 2021 Vrouwen"]
[Site "Hoogeveen, Netherlands"]
[Date "2021.10.23"]
[Round "7.1"]
[White "Haast, Anne"]
[Black "Van Foreest, Machteld"]
[Result "1-0"]
[TimeControl "90min/40moves + 30min + 30sec/move"]
[WhiteElo "2318"]
[BlackElo "2132"]

1. e4 {[%clk 01:30:57]} {[%emt 00:00:02]} c5 {[%clk 01:30:58]} {[%emt
00:00:03]} 2. Nf3 {[%clk 01:30:41]} {[%emt 00:00:45]} a6 {[%clk 01:31:26]}
{[%emt 00:00:03]} 3. c4 {[%clk 01:23:50]} {[%emt 00:07:21]} e6 {[%clk
01:29:46]} {[%emt 00:02:10]} 4. Nc3 {[%clk 01:20:25]} {[%emt 00:03:55]} Qc7
{[%clk 01:29:11]} {[%emt 00:01:05]} 5. a3 {[%clk 01:13:17]} {[%emt 00:07:38]}
Nc6 {[%clk 01:26:02]} {[%emt 00:03:39]} 6. d4 {[%clk 01:11:09]} {[%emt
00:02:38]} cxd4 {[%clk 01:23:57]} {[%emt 00:02:35]} 7. Nxd4 {[%clk 01:11:32]}
{[%emt 00:00:07]} Nf6 {[%clk 01:21:18]} {[%emt 00:03:10]} 8. Be3 {[%clk
01:06:09]} {[%emt 00:05:52]} Be7 {[%clk 01:19:55]} {[%emt 00:01:52]} 9. Rc1
{[%clk 01:04:08]} {[%emt 00:02:32]} O-O {[%clk 01:16:36]} {[%emt 00:03:49]} 10.
Be2 {[%clk 01:02:04]} {[%emt 00:02:34]} d6 {[%clk 01:11:43]} {[%emt 00:05:24]}
11. O-O {[%clk 01:00:33]} {[%emt 00:02:01]} Bd7 {[%clk 01:11:07]} {[%emt
00:01:06]} 12. f3 {[%clk 00:54:22]} {[%emt 00:06:41]} Rac8 {[%clk 01:06:17]}
{[%emt 00:05:20]} 13. b4 {[%clk 00:52:44]} {[%emt 00:02:08]} Qb8 {[%clk
01:03:47]} {[%emt 00:03:00]} 14. Nb3 {[%clk 00:49:42]} {[%emt 00:03:32]} Ne5
{[%clk 00:53:00]} {[%emt 00:11:17]} 15. c5 {[%clk 00:42:43]} {[%emt 00:07:29]}
Ng6 {[%clk 00:44:49]} {[%emt 00:08:40]} 16. f4 {[%clk 00:36:55]} {[%emt
00:06:19]} Rfd8 {[%clk 00:37:54]} {[%emt 00:07:24]} 17. Qe1 {[%clk 00:32:28]}
{[%emt 00:04:57]} dxc5 {[%clk 00:36:21]} {[%emt 00:02:03]} 18. e5 {[%clk
00:31:26]} {[%emt 00:01:33]} Nd5 {[%clk 00:28:23]} {[%emt 00:08:27]} 19. Nxd5
{[%clk 00:29:36]} {[%emt 00:02:21]} exd5 {[%clk 00:28:44]} {[%emt 00:00:09]} 20.
Bxc5 {[%clk 00:24:42]} {[%emt 00:05:24]} Bxc5+ {[%clk 00:23:56]} {[%emt
00:05:19]} 21. Nxc5 {[%clk 00:24:19]} {[%emt 00:00:53]} Bc6 {[%clk 00:23:47]}
{[%emt 00:00:39]} 22. Qf2 {[%clk 00:23:44]} {[%emt 00:01:05]} d4 {[%clk
00:17:31]} {[%emt 00:06:46]} 23. Rcd1 {[%clk 00:23:16]} {[%emt 00:00:57]} b6
{[%clk 00:17:33]} {[%emt 00:00:28]} 24. Nxa6 {[%emt 00:01:54]} Qa8 {[%clk
00:17:33]} {[%emt 00:00:15]} 25. b5 {[%clk 00:21:54]} {[%emt 00:00:45]} d3
{[%clk 00:11:53]} {[%emt 00:06:09]} 26. Rxd3 {[%clk 00:20:55]} {[%emt
00:01:29]} Be4 {[%clk 00:06:49]} {[%emt 00:05:34]} 27. Rxd8+ {[%clk 00:17:47]}
{[%emt 00:03:38]} Rxd8 {[%clk 00:07:16]} {[%emt 00:00:02]} 28. Bc4 {[%clk
00:10:41]} {[%emt 00:07:36]} Ne7 {[%clk 00:04:44]} {[%emt 00:03:01]} 29. Re1
{[%clk 00:09:11]} {[%emt 00:02:01]} h6 {[%clk 00:04:17]} {[%emt 00:00:57]} 30.
h3 {[%clk 00:08:08]} {[%emt 00:01:33]} Nf5 {[%clk 00:04:13]} {[%emt 00:00:34]}
31. e6 {[%clk 00:08:01]} {[%emt 00:00:37]} Rd4 {[%clk 00:03:43]} {[%emt
00:01:00]} 32. exf7+ {[%clk 00:07:59]} {[%emt 00:00:32]} Kf8 {[%clk 00:03:59]}
{[%emt 00:00:13]} 33. Nc7 {[%clk 00:07:37]} {[%emt 00:00:53]} 1-0

[Event "Deloitte NK 2021 Vrouwen"]
[Site "Hoogeveen, Netherlands"]
[Date "2021.10.23"]
[Round "7.2"]
[White "Peng, Zhaoqin"]
[Black "Kazarian, Anna-Maja"]
[Result "1/2-1/2"]
[TimeControl "90min/40moves + 30min + 30sec/move"]
[WhiteElo "2359"]
[BlackElo "2125"]

1. d4 {[%clk 01:30:49]} {[%emt 00:00:11]} e6 {[%clk 01:30:51]} {[%emt
00:00:09]} 2. c4 {[%clk 01:30:42]} {[%emt 00:00:36]} b6 {[%clk 01:31:10]}
{[%emt 00:00:12]} 3. Nc3 {[%clk 01:30:53]} {[%emt 00:00:19]} Bb7 {[%clk
01:27:28]} {[%emt 00:04:13]} 4. a3 {[%clk 01:31:02]} {[%emt 00:00:20]} f5
{[%clk 01:27:42]} {[%emt 00:00:16]} 5. d5 {[%clk 01:29:07]} {[%emt 00:02:25]}
Nf6 {[%clk 01:27:34]} {[%emt 00:00:38]} 6. g3 {[%clk 01:29:29]} {[%emt
00:00:08]} Bd6 {[%clk 01:23:52]} {[%emt 00:04:12]} 7. Nf3 {[%clk 01:21:31]}
{[%emt 00:08:28]} O-O {[%clk 01:12:25]} {[%emt 00:11:58]} 8. Bg2 {[%clk
01:21:21]} {[%emt 00:00:39]} h6 {[%clk 01:02:24]} {[%emt 00:10:31]} 9. Nd4
{[%clk 01:13:01]} {[%emt 00:08:49]} Qe7 {[%clk 00:57:47]} {[%emt 00:05:08]} 10.
O-O {[%clk 01:11:57]} {[%emt 00:01:33]} c6 {[%clk 00:45:35]} {[%emt 00:12:43]}
11. b3 {[%clk 00:40:55]} {[%emt 00:31:32]} cxd5 {[%clk 00:42:12]} {[%emt
00:03:54]} 12. cxd5 {[%clk 00:39:14]} {[%emt 00:02:10]} Na6 {[%clk 00:29:34]}
{[%emt 00:13:09]} 13. Bb2 {[%clk 00:32:27]} {[%emt 00:07:17]} Nc7 {[%clk
00:25:21]} {[%emt 00:04:43]} 14. dxe6 {[%clk 00:23:44]} {[%emt 00:09:12]} Bxg2
{[%clk 00:25:36]} {[%emt 00:00:15]} 15. Kxg2 {[%clk 00:24:03]} {[%emt
00:00:11]} dxe6 {[%clk 00:25:19]} {[%emt 00:00:48]} 16. e4 {[%clk 00:23:47]}
{[%emt 00:00:45]} f4 {[%clk 00:20:05]} {[%emt 00:05:44]} 17. b4 {[%clk
00:18:12]} {[%emt 00:06:04]} Qe8 {[%clk 00:18:32]} {[%emt 00:02:04]} 18. Nf3
{[%clk 00:12:56]} {[%emt 00:05:46]} Rd8 {[%clk 00:18:06]} {[%emt 00:00:56]} 19.
Qb3 {[%clk 00:12:07]} {[%emt 00:01:18]} Qh5 {[%clk 00:17:05]} {[%emt 00:01:31]}
20. Rae1 {[%clk 00:08:38]} {[%emt 00:03:59]} Ng4 {[%clk 00:13:44]} {[%emt
00:03:51]} 21. h3 {[%clk 00:06:40]} {[%emt 00:02:27]} Ne5 {[%clk 00:10:50]}
{[%emt 00:03:24]} 22. Ne2 {[%clk 00:06:35]} {[%emt 00:00:36]} Nxf3 {[%clk
00:04:52]} {[%emt 00:06:28]} 23. Qxf3 {[%clk 00:07:02]} {[%emt 00:00:02]} Qxf3+
{[%clk 00:05:10]} {[%emt 00:00:12]} 24. Kxf3 {[%clk 00:07:31]} {[%emt
00:00:01]} fxg3+ {[%clk 00:05:25]} {[%emt 00:00:16]} 25. Kg2 {[%clk 00:07:49]}
{[%emt 00:00:11]} gxf2 {[%clk 00:04:18]} {[%emt 00:01:37]} 26. Rxf2 {[%clk
00:08:15]} {[%emt 00:00:04]} Rxf2+ {[%clk 00:02:39]} {[%emt 00:02:09]} 27. Kxf2
{[%clk 00:08:43]} {[%emt 00:00:01]} a5 {[%clk 00:01:36]} {[%emt 00:01:34]} 28.
bxa5 {[%clk 00:04:52]} {[%emt 00:04:21]} bxa5 {[%clk 00:02:04]} {[%emt
00:00:01]} 29. Rc1 {[%clk 00:04:40]} {[%emt 00:00:41]} Rb8 {[%clk 00:00:40]}
{[%emt 00:01:54]} 30. Ba1 {[%clk 00:03:33]} {[%emt 00:01:37]} Ne8 {[%clk
00:00:50]} {[%emt 00:00:20]} 31. a4 {[%clk 00:02:44]} {[%emt 00:01:19]} Rb4
{[%clk 00:01:15]} {[%emt 00:00:05]} 32. e5 {[%clk 00:02:34]} {[%emt 00:00:39]}
Bc7 {[%clk 00:00:57]} {[%emt 00:00:48]} 33. Rc6 {[%clk 00:01:51]} {[%emt
00:01:13]} Rxa4 {[%clk 00:01:12]} {[%emt 00:00:15]} 34. Bc3 {[%clk 00:02:02]}
{[%emt 00:00:19]} Kf7 {[%clk 00:01:16]} {[%emt 00:00:26]} 35. Ra6 {[%clk
00:00:49]} {[%emt 00:01:43]} g5 {[%clk 00:01:21]} {[%emt 00:00:26]} 36. Ra7
{[%clk 00:00:43]} {[%emt 00:00:36]} Kg6 {[%clk 00:01:18]} {[%emt 00:00:33]} 37.
Kf3 {[%clk 00:00:37]} {[%emt 00:00:36]} Rc4 {[%clk 00:01:09]} {[%emt 00:00:39]}
38. Bxa5 {[%clk 00:00:37]} {[%emt 00:00:30]} Bxe5 {[%clk 00:01:09]} {[%emt
00:00:30]} 39. Be1 {[%clk 00:00:35]} {[%emt 00:00:32]} h5 {[%clk 00:01:05]}
{[%emt 00:00:34]} 40. Ra5 {[%clk 00:00:41]} {[%emt 00:00:24]} Bc7 {[%clk
00:00:34]} {[%emt 00:01:01]} 41. Ra8 {[%clk 00:00:33]} {[%emt 00:00:39]} Nf6
{[%clk 00:30:04]} {[%emt 00:00:59]} 42. Bc3 {[%clk 00:25:26]} {[%emt 00:05:36]}
Rh4 {[%clk 00:23:10]} {[%emt 00:07:24]} 43. Kg2 {[%clk 00:23:34]} {[%emt
00:02:22]} g4 {[%clk 00:15:54]} {[%emt 00:07:46]} 44. hxg4 {[%clk 00:23:43]}
{[%emt 00:00:21]} Rh2+ {[%clk 00:16:02]} {[%emt 00:00:23]} 45. Kf1 {[%clk
00:23:55]} {[%emt 00:00:18]} hxg4 {[%clk 00:15:32]} {[%emt 00:01:00]} 46. Bxf6
{[%clk 00:13:44]} {[%emt 00:10:41]} Kxf6 {[%clk 00:15:56]} {[%emt 00:00:06]} 47.
Rg8 {[%clk 00:11:24]} {[%emt 00:02:50]} Rh4 {[%clk 00:13:27]} {[%emt 00:03:00]}
48. Kg2 {[%clk 00:11:18]} {[%emt 00:00:36]} Be5 {[%clk 00:07:00]} {[%emt
00:06:57]} 49. Ng3 {[%clk 00:09:49]} {[%emt 00:01:58]} Bf4 {[%clk 00:02:25]}
{[%emt 00:05:07]} 50. Rf8+ {[%clk 00:07:04]} {[%emt 00:03:15]} Ke5 {[%clk
00:02:52]} {[%emt 00:00:03]} 51. Ra8 {[%clk 00:05:21]} {[%emt 00:02:12]} Rh3
{[%clk 00:02:37]} {[%emt 00:00:46]} 52. Ra5+ {[%clk 00:04:32]} {[%emt
00:01:19]} Kf6 {[%clk 00:03:01]} {[%emt 00:00:05]} 53. Nh5+ {[%clk 00:03:04]}
{[%emt 00:01:58]} Ke7 {[%clk 00:01:01]} {[%emt 00:02:31]} 54. Nxf4 {[%clk
00:03:20]} {[%emt 00:00:14]} Rf3 {[%clk 00:01:00]} {[%emt 00:00:31]} 55. Ng6+
{[%clk 00:02:46]} {[%emt 00:01:04]} Kf6 {[%clk 00:01:20]} {[%emt 00:00:10]} 56.
Ne5 {[%clk 00:03:04]} {[%emt 00:00:12]} Rf5 {[%clk 00:01:35]} {[%emt 00:00:15]}
57. Nxg4+ {[%clk 00:03:21]} {[%emt 00:00:12]} Kg5 {[%clk 00:02:01]} {[%emt
00:00:04]} 58. Ne5 {[%clk 00:03:19]} {[%emt 00:00:32]} Kf6 {[%clk 00:01:27]}
{[%emt 00:01:05]} 1/2-1/2

[Event "Deloitte NK 2021 Vrouwen"]
[Site "Hoogeveen, Netherlands"]
[Date "2021.10.23"]
[Round "7.3"]
[White "Lanchava, Tea"]
[Black "Ratsma, Rosa"]
[Result "0-1"]
[TimeControl "90min/40moves + 30min + 30sec/move"]
[WhiteElo "2214"]
[BlackElo "2306"]

1. c4 {[%clk 01:30:49]} {[%emt 00:00:11]} e6 {[%clk 01:30:33]} {[%emt
00:00:27]} 2. Nc3 {[%clk 01:30:12]} {[%emt 00:01:07]} Nf6 {[%clk 01:30:39]}
{[%emt 00:00:24]} 3. e4 {[%clk 01:29:30]} {[%emt 00:01:12]} c5 {[%clk
01:30:16]} {[%emt 00:00:53]} 4. Nf3 {[%clk 01:16:14]} {[%emt 00:13:46]} Nc6
{[%clk 01:29:40]} {[%emt 00:01:06]} 5. d3 {[%clk 01:11:23]} {[%emt 00:05:21]}
d5 {[%clk 01:21:25]} {[%emt 00:08:44]} 6. cxd5 {[%clk 01:07:49]} {[%emt
00:04:04]} exd5 {[%clk 01:21:42]} {[%emt 00:00:13]} 7. Bg5 {[%clk 01:07:02]}
{[%emt 00:01:17]} d4 {[%clk 01:13:52]} {[%emt 00:08:20]} 8. Nd5 {[%clk
01:06:04]} {[%emt 00:01:29]} Qa5+ {[%clk 01:08:47]} {[%emt 00:05:35]} 9. Bd2
{[%clk 01:01:54]} {[%emt 00:04:40]} Qd8 {[%clk 01:08:48]} {[%emt 00:00:29]} 10.
Bg5 {[%clk 00:54:05]} {[%emt 00:08:19]} Be7 {[%clk 01:03:24]} {[%emt 00:05:54]}
11. Nxe7 {[%clk 00:52:52]} {[%emt 00:01:43]} Qxe7 {[%clk 01:03:09]} {[%emt
00:00:46]} 12. Qc1 {[%clk 00:49:06]} {[%emt 00:04:16]} b6 {[%clk 00:56:38]}
{[%emt 00:07:01]} 13. Be2 {[%clk 00:48:57]} {[%emt 00:00:39]} h6 {[%clk
00:56:12]} {[%emt 00:00:55]} 14. Bh4 {[%clk 00:48:34]} {[%emt 00:00:54]} g5
{[%clk 00:49:51]} {[%emt 00:06:51]} 15. Bg3 {[%clk 00:46:46]} {[%emt 00:02:18]}
Nd7 {[%clk 00:39:08]} {[%emt 00:11:13]} 16. O-O {[%clk 00:42:15]} {[%emt
00:05:02]} Nde5 {[%clk 00:33:08]} {[%emt 00:06:30]} 17. Nxe5 {[%clk 00:40:40]}
{[%emt 00:02:03]} Nxe5 {[%clk 00:33:35]} {[%emt 00:00:05]} 18. f4 {[%clk
00:39:54]} {[%emt 00:01:16]} Ng6 {[%clk 00:30:21]} {[%emt 00:03:44]} 19. f5
{[%clk 00:33:46]} {[%emt 00:06:38]} Ne5 {[%clk 00:30:14]} {[%emt 00:00:37]} 20.
f6 {[%clk 00:33:37]} {[%emt 00:00:39]} Qe6 {[%clk 00:25:48]} {[%emt 00:04:56]}
21. Rf5 {[%clk 00:29:59]} {[%emt 00:04:07]} Nd7 {[%clk 00:24:27]} {[%emt
00:01:51]} 22. Bg4 {[%clk 00:27:49]} {[%emt 00:02:40]} Nxf6 {[%clk 00:21:45]}
{[%emt 00:03:13]} 23. Re5 {[%clk 00:28:05]} {[%emt 00:00:14]} Nxg4 {[%clk
00:22:01]} {[%emt 00:00:13]} 24. Rxe6+ {[%clk 00:28:28]} {[%emt 00:00:06]} Bxe6
{[%clk 00:22:13]} {[%emt 00:00:18]} 25. h3 {[%clk 00:24:56]} {[%emt 00:04:02]}
Ne3 {[%clk 00:22:36]} {[%emt 00:00:07]} 26. Be5 {[%clk 00:25:13]} {[%emt
00:00:13]} O-O {[%clk 00:17:58]} {[%emt 00:05:08]} 27. Bf6 {[%clk 00:21:53]}
{[%emt 00:03:50]} Kh7 {[%clk 00:18:04]} {[%emt 00:00:24]} 28. Qd2 {[%clk
00:20:22]} {[%emt 00:02:01]} Rg8 {[%clk 00:16:50]} {[%emt 00:01:44]} 29. b4
{[%clk 00:18:25]} {[%emt 00:02:27]} Rg6 {[%clk 00:15:48]} {[%emt 00:01:32]} 30.
Be5 {[%clk 00:17:43]} {[%emt 00:01:13]} Re8 {[%clk 00:13:29]} {[%emt 00:02:48]}
31. Bg3 {[%clk 00:16:49]} {[%emt 00:01:24]} f5 {[%clk 00:11:42]} {[%emt
00:02:18]} 32. bxc5 {[%clk 00:16:45]} {[%emt 00:00:33]} bxc5 {[%clk 00:10:53]}
{[%emt 00:01:19]} 33. Qa5 {[%clk 00:15:38]} {[%emt 00:01:37]} fxe4 {[%clk
00:10:32]} {[%emt 00:00:50]} 34. Qxc5 {[%clk 00:15:32]} {[%emt 00:00:37]} exd3
{[%clk 00:09:07]} {[%emt 00:01:55]} 35. Qxa7+ {[%clk 00:14:10]} {[%emt
00:01:52]} Rg7 {[%clk 00:08:26]} {[%emt 00:01:11]} 36. Qxd4 {[%clk 00:14:25]}
{[%emt 00:00:15]} Bf5 {[%clk 00:08:29]} {[%emt 00:00:27]} 37. Qa4 {[%clk
00:10:17]} {[%emt 00:04:39]} Re4 {[%clk 00:06:51]} {[%emt 00:02:08]} 38. Qa5
{[%clk 00:10:11]} {[%emt 00:00:36]} Bg6 {[%clk 00:06:26]} {[%emt 00:00:54]} 39.
Bf2 {[%clk 00:07:46]} {[%emt 00:02:55]} Nc2 {[%clk 00:04:47]} {[%emt 00:02:09]}
40. Rd1 {[%clk 00:07:15]} {[%emt 00:01:01]} Re2 {[%clk 00:02:53]} {[%emt
00:02:24]} 41. Qd8 {[%clk 00:24:02]} {[%emt 00:13:44]} Rf7 {[%clk 00:29:16]}
{[%emt 00:04:06]} 42. Bd4 {[%clk 00:15:48]} {[%emt 00:08:44]} Nxd4 {[%clk
00:29:11]} {[%emt 00:00:36]} 43. Qxd4 {[%clk 00:15:57]} {[%emt 00:00:20]} Be4
{[%clk 00:19:54]} {[%emt 00:09:46]} 44. a4 {[%clk 00:15:28]} {[%emt 00:01:00]}
Rxg2+ {[%clk 00:19:07]} {[%emt 00:01:16]} 45. Kh1 {[%clk 00:15:53]} {[%emt
00:00:05]} Re2+ {[%clk 00:17:44]} {[%emt 00:01:53]} 46. Kg1 {[%clk 00:16:18]}
{[%emt 00:00:05]} Kg8 {[%clk 00:15:15]} {[%emt 00:02:59]} 47. a5 {[%clk
00:13:47]} {[%emt 00:03:03]} Ba8 {[%clk 00:10:18]} {[%emt 00:05:26]} 48. Qg4
{[%clk 00:11:47]} {[%emt 00:02:30]} Bf3 {[%clk 00:06:34]} {[%emt 00:04:14]} 49.
Qg3 {[%clk 00:11:27]} {[%emt 00:00:50]} d2 {[%clk 00:04:10]} {[%emt 00:02:55]}
50. Qb8+ {[%clk 00:09:29]} {[%emt 00:02:28]} Kh7 {[%clk 00:04:19]} {[%emt
00:00:21]} 51. Qg3 {[%clk 00:07:41]} {[%emt 00:02:18]} h5 {[%clk 00:03:18]}
{[%emt 00:01:32]} 52. Rxd2 {[%clk 00:01:07]} {[%emt 00:07:04]} Rxd2 {[%clk
00:03:30]} {[%emt 00:00:17]} 53. Qb8 {[%clk 00:01:01]} {[%emt 00:00:36]} Rg2+
{[%clk 00:03:00]} {[%emt 00:01:00]} 54. Kf1 {[%clk 00:01:17]} {[%emt 00:00:14]}
Rb7 {[%clk 00:02:53]} {[%emt 00:00:37]} 0-1

[Event "Deloitte NK 2021 Vrouwen"]
[Site "Hoogeveen, Netherlands"]
[Date "2021.10.23"]
[Round "7.4"]
[White "Keetman, Maaike"]
[Black "Roebers, Eline"]
[Result "1-0"]
[TimeControl "90min/40moves + 30min + 30sec/move"]
[WhiteElo "2136"]
[BlackElo "2297"]

1. e4 {[%clk 01:30:56]} {[%emt 00:00:03]} c5 {[%clk 01:30:57]} {[%emt
00:00:03]} 2. Nf3 {[%clk 01:31:22]} {[%emt 00:00:05]} e6 {[%clk 01:31:08]}
{[%emt 00:00:20]} 3. d4 {[%clk 01:31:45]} {[%emt 00:00:06]} cxd4 {[%clk
01:31:33]} {[%emt 00:00:04]} 4. Nxd4 {[%clk 01:32:10]} {[%emt 00:00:04]} Nf6
{[%clk 01:31:59]} {[%emt 00:00:05]} 5. Nc3 {[%clk 01:32:35]} {[%emt 00:00:05]}
Nc6 {[%clk 01:32:25]} {[%emt 00:00:04]} 6. a3 {[%clk 01:32:29]} {[%emt
00:00:36]} d6 {[%clk 01:30:10]} {[%emt 00:02:45]} 7. Be3 {[%clk 01:31:03]}
{[%emt 00:01:57]} Be7 {[%clk 01:28:09]} {[%emt 00:02:31]} 8. Be2 {[%clk
01:30:49]} {[%emt 00:00:44]} O-O {[%clk 01:26:04]} {[%emt 00:02:35]} 9. O-O
{[%clk 01:30:39]} {[%emt 00:00:40]} a6 {[%clk 01:12:44]} {[%emt 00:13:50]} 10.
f4 {[%clk 01:25:46]} {[%emt 00:05:22]} Qc7 {[%clk 01:10:53]} {[%emt 00:02:22]}
11. Bf3 {[%clk 01:22:13]} {[%emt 00:04:03]} Na5 {[%clk 01:11:01]} {[%emt
00:00:22]} 12. Kh1 {[%clk 01:14:08]} {[%emt 00:08:35]} Nc4 {[%clk 01:08:48]}
{[%emt 00:02:43]} 13. Bc1 {[%clk 01:14:17]} {[%emt 00:00:21]} Rd8 {[%clk
01:04:05]} {[%emt 00:05:13]} 14. Qe1 {[%clk 01:01:07]} {[%emt 00:13:39]} Rb8
{[%clk 00:59:14]} {[%emt 00:05:21]} 15. b3 {[%clk 00:51:33]} {[%emt 00:10:05]}
Na5 {[%clk 00:58:23]} {[%emt 00:01:21]} 16. Bb2 {[%clk 00:51:42]} {[%emt
00:00:22]} b5 {[%clk 00:53:35]} {[%emt 00:05:18]} 17. g4 {[%clk 00:38:52]}
{[%emt 00:13:19]} Bb7 {[%clk 00:50:49]} {[%emt 00:03:16]} 18. Qg3 {[%clk
00:36:09]} {[%emt 00:03:13]} Nc6 {[%clk 00:47:41]} {[%emt 00:03:39]} 19. Nxc6
{[%clk 00:29:47]} {[%emt 00:06:52]} Bxc6 {[%clk 00:47:56]} {[%emt 00:00:14]} 20.
f5 {[%clk 00:30:07]} {[%emt 00:00:11]} Qb7 {[%clk 00:45:36]} {[%emt 00:02:50]}
21. Rae1 {[%clk 00:28:15]} {[%emt 00:02:22]} Nd7 {[%clk 00:42:40]} {[%emt
00:03:27]} 22. fxe6 {[%clk 00:21:42]} {[%emt 00:07:03]} fxe6 {[%clk 00:42:56]}
{[%emt 00:00:13]} 23. Nd5 {[%clk 00:22:07]} {[%emt 00:00:05]} Bf8 {[%clk
00:36:47]} {[%emt 00:06:39]} 24. Nb4 {[%clk 00:21:08]} {[%emt 00:01:29]} a5
{[%clk 00:35:43]} {[%emt 00:01:34]} 25. Nxc6 {[%clk 00:21:13]} {[%emt
00:00:25]} Qxc6 {[%clk 00:36:07]} {[%emt 00:00:05]} 26. Re2 {[%clk 00:20:33]}
{[%emt 00:01:11]} Ne5 {[%clk 00:34:26]} {[%emt 00:02:11]} 27. Bg2 {[%clk
00:16:27]} {[%emt 00:04:37]} Be7 {[%clk 00:28:15]} {[%emt 00:06:41]} 28. g5
{[%clk 00:10:33]} {[%emt 00:06:24]} Rf8 {[%clk 00:25:46]} {[%emt 00:02:59]} 29.
Rd1 {[%clk 00:07:57]} {[%emt 00:03:06]} Ng6 {[%clk 00:21:35]} {[%emt 00:04:41]}
30. Bc1 {[%clk 00:02:56]} {[%emt 00:05:32]} e5 {[%clk 00:13:52]} {[%emt
00:08:12]} 31. Qg4 {[%clk 00:03:15]} {[%emt 00:00:11]} Kh8 {[%clk 00:08:48]}
{[%emt 00:05:34]} 32. Qe6 {[%clk 00:02:17]} {[%emt 00:01:28]} Rbe8 {[%clk
00:07:57]} {[%emt 00:01:20]} 33. Qd5 {[%clk 00:02:06]} {[%emt 00:00:42]} Qd7
{[%clk 00:08:04]} {[%emt 00:00:23]} 34. c4 {[%clk 00:02:05]} {[%emt 00:00:31]}
Qg4 {[%clk 00:07:23]} {[%emt 00:01:11]} 35. Ree1 {[%clk 00:00:58]} {[%emt
00:01:37]} Rf2 {[%clk 00:07:18]} {[%emt 00:00:34]} 36. Rg1 {[%clk 00:01:14]}
{[%emt 00:00:14]} Nh4 {[%clk 00:05:25]} {[%emt 00:02:23]} 37. Rd2 {[%clk
00:01:23]} {[%emt 00:00:22]} Ref8 {[%clk 00:04:21]} {[%emt 00:01:34]} 38. Rxf2
{[%clk 00:01:29]} {[%emt 00:00:23]} Rxf2 {[%clk 00:04:47]} {[%emt 00:00:04]} 39.
Be3 {[%clk 00:01:55]} {[%emt 00:00:05]} Rf3 {[%clk 00:01:06]} {[%emt 00:04:10]}
40. cxb5 {[%clk 00:00:46]} {[%emt 00:01:39]} h6 {[%clk 00:00:34]} {[%emt
00:01:01]} 41. b6 {[%clk 00:27:50]} {[%emt 00:03:27]} Nxg2 {[%clk 00:24:24]}
{[%emt 00:06:40]} 42. Rxg2 {[%clk 00:25:10]} {[%emt 00:03:10]} Rf1+ {[%clk
00:22:23]} {[%emt 00:02:31]} 43. Bg1 {[%clk 00:25:31]} {[%emt 00:00:09]} Qh5
{[%clk 00:19:20]} {[%emt 00:03:32]} 44. b7 {[%clk 00:22:36]} {[%emt 00:03:26]}
Rf8 {[%clk 00:19:30]} {[%emt 00:00:19]} 45. Qe6 {[%clk 00:21:59]} {[%emt
00:01:07]} Bxg5 {[%clk 00:19:31]} {[%emt 00:00:29]} 46. Qc8 {[%clk 00:22:06]}
{[%emt 00:00:23]} Qe8 {[%clk 00:19:56]} {[%emt 00:00:05]} 47. Qxe8 {[%clk
00:22:14]} {[%emt 00:00:22]} Rxe8 {[%clk 00:20:23]} {[%emt 00:00:04]} 48. Ba7
{[%clk 00:22:41]} {[%emt 00:00:02]} 1-0